[Event "Early-Titled-Tuesday-Blitz-September-05-2023"]
[Site "Chess.com"]
[Date "2023.09.05"]
[Round "9"]
[White "Chessdude1987"]
[Black "WiktoriaPOL"]
[Result "1-0"]
[WhiteElo "2432"]
[BlackElo "2289"]
[TimeControl "180+1"]
[EndTime "9:42:46 PDT"]
[Termination "Chessdude1987 won by checkmate"]

1. e4 {[%clk 0:03:00.9]} 1... c5 {[%clk 0:02:41.9]} 2. Nf3 {[%clk 0:03:00.4]}
2... d6 {[%clk 0:02:40.5]} 3. Bc4 {[%clk 0:03:00.9]} 3... Nf6 {[%clk 0:02:38.3]}
4. d3 {[%clk 0:03:00.8]} 4... e6 {[%clk 0:02:36.9]} 5. c3 {[%clk 0:02:52.1]}
5... d5 {[%clk 0:02:36]} 6. exd5 {[%clk 0:02:49.5]} 6... exd5 {[%clk 0:02:36.9]}
7. Bb5+ {[%clk 0:02:49.7]} 7... Bd7 {[%clk 0:02:34.7]} 8. Bxd7+ {[%clk
0:02:46.6]} 8... Qxd7 {[%clk 0:02:26.6]} 9. d4 {[%clk 0:02:47.5]} 9... c4 {[%clk
0:02:18.4]} 10. O-O {[%clk 0:02:42.4]} 10... Be7 {[%clk 0:02:15.1]} 11. Ne5
{[%clk 0:02:42]} 11... Qf5 {[%clk 0:02:13.7]} 12. b3 {[%clk 0:02:41.7]} 12... b5
{[%clk 0:02:07.4]} 13. a4 {[%clk 0:02:41.1]} 13... bxa4 {[%clk 0:02:04.7]} 14.
bxc4 {[%clk 0:02:40.1]} 14... dxc4 {[%clk 0:02:01.2]} 15. Qxa4+ {[%clk
0:02:30.6]} 15... Nbd7 {[%clk 0:02:01]} 16. Nc6 {[%clk 0:01:55.6]} 16... Qe6
{[%clk 0:01:23.3]} 17. Nxe7 {[%clk 0:01:43.7]} 17... Qxe7 {[%clk 0:01:15.1]} 18.
Ba3 {[%clk 0:01:43.2]} 18... Qe6 {[%clk 0:01:10.3]} 19. Nd2 {[%clk 0:01:39.9]}
19... Qd5 {[%clk 0:00:38.9]} 20. Rfe1+ {[%clk 0:01:38.3]} 20... Kd8 {[%clk
0:00:38.8]} 21. Be7+ {[%clk 0:01:28.2]} 21... Kc7 {[%clk 0:00:35.2]} 22. Nxc4
{[%clk 0:01:24.2]} 22... Nb6 {[%clk 0:00:31.9]} 23. Bd6+ {[%clk 0:01:01.3]}
23... Qxd6 {[%clk 0:00:32]} 24. Qa5 {[%clk 0:00:24.7]} 24... Qc6 {[%clk
0:00:14]} 25. Re7+ {[%clk 0:00:21.7]} 25... Nd7 {[%clk 0:00:12.2]} 26. Ne5
{[%clk 0:00:20.8]} 26... Qd6 {[%clk 0:00:10.7]} 27. Rxf7 {[%clk 0:00:17.2]}
27... Kc8 {[%clk 0:00:08.8]} 28. Qa6+ {[%clk 0:00:16.4]} 28... Kd8 {[%clk
0:00:04.8]} 29. Rxd7+ {[%clk 0:00:13.9]} 29... Qxd7 {[%clk 0:00:03.9]} 30. Nxd7
{[%clk 0:00:13.4]} 30... Kxd7 {[%clk 0:00:04.5]} 31. Qb7+ {[%clk 0:00:13]} 31...
Kd6 {[%clk 0:00:04.6]} 32. c4 {[%clk 0:00:10.8]} 32... Rhb8 {[%clk 0:00:03.2]}
33. c5+ {[%clk 0:00:10.4]} 33... Ke6 {[%clk 0:00:03.1]} 34. Re1+ {[%clk
0:00:09.2]} 34... Kf6 {[%clk 0:00:03]} 35. Qe7+ {[%clk 0:00:08.5]} 35... Kg6
{[%clk 0:00:02.8]} 36. Re6+ {[%clk 0:00:07.6]} 36... Kh5 {[%clk 0:00:02.6]} 37.
g4+ {[%clk 0:00:06.3]} 37... Kxg4 {[%clk 0:00:02.4]} 38. h3+ {[%clk 0:00:05.9]}
38... Kxh3 {[%clk 0:00:02.1]} 39. Re3+ {[%clk 0:00:04.3]} 39... Kg4 {[%clk
0:00:02.4]} 40. Qe6+ {[%clk 0:00:04.1]} 40... Kg5 {[%clk 0:00:01.2]} 41. Rg3+
{[%clk 0:00:04]} 41... Kf4 {[%clk 0:00:01.1]} 42. Qe5# {[%clk 0:00:03.6]} 1-0

[Event "Early-Titled-Tuesday-Blitz-September-05-2023"]
[Site "Chess.com"]
[Date "2023.09.05"]
[Round "9"]
[White "MrBad74"]
[Black "Langua_Chess"]
[Result "0-1"]
[WhiteElo "2349"]
[BlackElo "2480"]
[TimeControl "180+1"]
[EndTime "9:42:47 PDT"]
[Termination "Langua_Chess won on time"]

1. e4 {[%clk 0:03:00.9]} 1... c6 {[%clk 0:03:00]} 2. d4 {[%clk 0:03:00.1]} 2...
d5 {[%clk 0:03:00.4]} 3. e5 {[%clk 0:02:59.9]} 3... c5 {[%clk 0:03:00.8]} 4.
dxc5 {[%clk 0:02:58.9]} 4... e6 {[%clk 0:03:01.3]} 5. Nf3 {[%clk 0:02:58.4]}
5... Bxc5 {[%clk 0:02:58.5]} 6. a3 {[%clk 0:02:58.5]} 6... Nd7 {[%clk
0:02:25.6]} 7. Bd3 {[%clk 0:02:57.8]} 7... f6 {[%clk 0:02:06.9]} 8. b4 {[%clk
0:02:57.2]} 8... Be7 {[%clk 0:02:06.5]} 9. Bb2 {[%clk 0:02:57.4]} 9... Qc7
{[%clk 0:02:02.3]} 10. Bb5 {[%clk 0:02:41.5]} 10... a6 {[%clk 0:01:59.6]} 11.
Bxd7+ {[%clk 0:02:41.3]} 11... Bxd7 {[%clk 0:02:00.5]} 12. O-O {[%clk 0:02:41]}
12... Rc8 {[%clk 0:01:59.6]} 13. Qd4 {[%clk 0:02:06.3]} 13... Qxc2 {[%clk
0:01:55.6]} 14. Nbd2 {[%clk 0:02:03.3]} 14... Qf5 {[%clk 0:01:42.8]} 15. Rac1
{[%clk 0:01:54.6]} 15... Rxc1 {[%clk 0:01:39.4]} 16. Rxc1 {[%clk 0:01:52.9]}
16... Bc6 {[%clk 0:01:40.1]} 17. Qa7 {[%clk 0:01:42.8]} 17... Kf7 {[%clk
0:01:37.9]} 18. Nd4 {[%clk 0:01:22.1]} 18... Qxe5 {[%clk 0:01:22.1]} 19. N2f3
{[%clk 0:01:04.9]} 19... Qd6 {[%clk 0:01:18.3]} 20. Nxc6 {[%clk 0:00:53.2]}
20... bxc6 {[%clk 0:01:18.5]} 21. Qxa6 {[%clk 0:00:51.1]} 21... c5 {[%clk
0:00:51.9]} 22. Qxd6 {[%clk 0:00:50.4]} 22... Bxd6 {[%clk 0:00:52.7]} 23. bxc5
{[%clk 0:00:50.9]} 23... Bf4 {[%clk 0:00:53.4]} 24. Rb1 {[%clk 0:00:36.9]} 24...
Ne7 {[%clk 0:00:53.8]} 25. g3 {[%clk 0:00:36.7]} 25... Bb8 {[%clk 0:00:41.4]}
26. Bc3 {[%clk 0:00:24.8]} 26... Rc8 {[%clk 0:00:38.6]} 27. Rb7 {[%clk
0:00:21.1]} 27... e5 {[%clk 0:00:13.8]} 28. Bb4 {[%clk 0:00:16.6]} 28... Ke6
{[%clk 0:00:14]} 29. Kf1 {[%clk 0:00:15.7]} 29... g5 {[%clk 0:00:10]} 30. h3
{[%clk 0:00:14.5]} 30... h5 {[%clk 0:00:09.8]} 31. Ke2 {[%clk 0:00:14.6]} 31...
Nc6 {[%clk 0:00:05]} 32. Nd2 {[%clk 0:00:12.2]} 32... Nd4+ {[%clk 0:00:04.9]}
33. Kd3 {[%clk 0:00:11.1]} 33... Bc7 {[%clk 0:00:04.1]} 34. Nf1 {[%clk 0:00:07]}
34... Nc6 {[%clk 0:00:04.6]} 35. Ne3 {[%clk 0:00:06.5]} 35... Bd8 {[%clk
0:00:04.2]} 36. Nc2 {[%clk 0:00:06]} 36... e4+ {[%clk 0:00:02.3]} 37. Ke2 {[%clk
0:00:05.1]} 37... f5 {[%clk 0:00:03]} 38. h4 {[%clk 0:00:04.4]} 38... gxh4
{[%clk 0:00:02.5]} 39. gxh4 {[%clk 0:00:04.9]} 39... d4 {[%clk 0:00:03.2]} 40.
Kd2 {[%clk 0:00:03.8]} 40... Bxh4 {[%clk 0:00:02.9]} 41. Rh7 {[%clk 0:00:03]}
41... Bg5+ {[%clk 0:00:03.3]} 42. Kd1 {[%clk 0:00:02]} 42... d3 {[%clk
0:00:03.3]} 0-1

[Event "Early-Titled-Tuesday-Blitz-September-05-2023"]
[Site "Chess.com"]
[Date "2023.09.05"]
[Round "9"]
[White "karinachess1"]
[Black "Nick12772"]
[Result "1-0"]
[WhiteElo "2568"]
[BlackElo "2322"]
[TimeControl "180+1"]
[EndTime "9:42:47 PDT"]
[Termination "karinachess1 won by checkmate"]

1. e4 {[%clk 0:03:00.9]} 1... e6 {[%clk 0:03:00.1]} 2. d4 {[%clk 0:03:00.6]}
2... d5 {[%clk 0:03:01]} 3. Nc3 {[%clk 0:03:01.1]} 3... Bb4 {[%clk 0:03:00.9]}
4. Ne2 {[%clk 0:03:01.2]} 4... Nf6 {[%clk 0:03:00.8]} 5. e5 {[%clk 0:03:01.6]}
5... Nfd7 {[%clk 0:03:01.4]} 6. f4 {[%clk 0:03:01.9]} 6... c5 {[%clk 0:03:01.5]}
7. Be3 {[%clk 0:03:02.3]} 7... Nc6 {[%clk 0:02:59.5]} 8. a3 {[%clk 0:03:02.7]}
8... c4 {[%clk 0:02:59.9]} 9. axb4 {[%clk 0:03:02.2]} 9... Nxb4 {[%clk
0:02:43.2]} 10. g3 {[%clk 0:02:58]} 10... h5 {[%clk 0:02:19]} 11. Bg2 {[%clk
0:02:53.5]} 11... g6 {[%clk 0:02:19.3]} 12. O-O {[%clk 0:02:52]} 12... a6 {[%clk
0:02:08.1]} 13. Nb5 {[%clk 0:02:48.9]} 13... Kf8 {[%clk 0:01:52.6]} 14. Nd6
{[%clk 0:02:47.2]} 14... Kg7 {[%clk 0:01:52.5]} 15. h3 {[%clk 0:02:41.8]} 15...
Nc6 {[%clk 0:01:46]} 16. Qe1 {[%clk 0:02:34.4]} 16... Nb6 {[%clk 0:01:41.6]} 17.
Qf2 {[%clk 0:02:26.6]} 17... Nb4 {[%clk 0:01:39.3]} 18. Rfc1 {[%clk 0:02:25.9]}
18... Qc7 {[%clk 0:01:33]} 19. Nc3 {[%clk 0:02:22.1]} 19... Bd7 {[%clk
0:01:28.4]} 20. Rf1 {[%clk 0:02:20]} 20... Nc8 {[%clk 0:01:27.9]} 21. Nxc8
{[%clk 0:02:15.8]} 21... Raxc8 {[%clk 0:01:28.8]} 22. Rae1 {[%clk 0:02:11.6]}
22... Rh7 {[%clk 0:01:23.2]} 23. g4 {[%clk 0:02:09]} 23... hxg4 {[%clk
0:01:23.1]} 24. hxg4 {[%clk 0:02:09.9]} 24... Rch8 {[%clk 0:01:22.9]} 25. Re2
{[%clk 0:02:08.3]} 25... Kf8 {[%clk 0:01:16.5]} 26. Qg3 {[%clk 0:02:04.7]} 26...
Qb6 {[%clk 0:01:08]} 27. Ref2 {[%clk 0:01:40.7]} 27... Ke8 {[%clk 0:01:07]} 28.
f5 {[%clk 0:01:37.6]} 28... gxf5 {[%clk 0:01:04.5]} 29. gxf5 {[%clk 0:01:37.7]}
29... Kd8 {[%clk 0:00:51.2]} 30. fxe6 {[%clk 0:01:27.9]} 30... Bxe6 {[%clk
0:00:52.1]} 31. Na4 {[%clk 0:01:26.6]} 31... Qc6 {[%clk 0:00:43.1]} 32. Nc5
{[%clk 0:01:25.1]} 32... Kc8 {[%clk 0:00:38.6]} 33. Nxe6 {[%clk 0:01:08.5]}
33... Qxe6 {[%clk 0:00:39.5]} 34. Rf6 {[%clk 0:01:08.5]} 34... Qd7 {[%clk
0:00:30.1]} 35. R1f2 {[%clk 0:01:01.4]} 35... Nc6 {[%clk 0:00:27.4]} 36. Rd6
{[%clk 0:00:58.3]} 36... Qe8 {[%clk 0:00:22.6]} 37. Bg5 {[%clk 0:00:25.5]} 37...
Rg8 {[%clk 0:00:20.1]} 38. Rxd5 {[%clk 0:00:21.9]} 38... Rhg7 {[%clk 0:00:18.7]}
39. e6 {[%clk 0:00:19.7]} 39... fxe6 {[%clk 0:00:09.5]} 40. Bh3 {[%clk
0:00:16.9]} 40... Rg6 {[%clk 0:00:03.6]} 41. Rc5 {[%clk 0:00:11.8]} 41... Qd7
{[%clk 0:00:01.6]} 42. c3 {[%clk 0:00:11]} 42... Qd6 {[%clk 0:00:01.9]} 43. Qxd6
{[%clk 0:00:10.6]} 43... b6 {[%clk 0:00:01.5]} 44. Qxc6+ {[%clk 0:00:10.2]}
44... Kb8 {[%clk 0:00:02]} 45. Qc7+ {[%clk 0:00:10.1]} 45... Ka8 {[%clk
0:00:02.9]} 46. Qc6+ {[%clk 0:00:10.4]} 46... Ka7 {[%clk 0:00:03.3]} 47. Qc7+
{[%clk 0:00:10]} 47... Ka8 {[%clk 0:00:04]} 48. Bg2# {[%clk 0:00:10.7]} 1-0

[Event "Early-Titled-Tuesday-Blitz-September-05-2023"]
[Site "Chess.com"]
[Date "2023.09.05"]
[Round "9"]
[White "Zkid"]
[Black "GMWSO"]
[Result "1-0"]
[WhiteElo "2886"]
[BlackElo "3048"]
[TimeControl "180+1"]
[EndTime "9:42:49 PDT"]
[Termination "Zkid won on time"]

1. e4 {[%clk 0:03:00.9]} 1... e6 {[%clk 0:02:34.5]} 2. d4 {[%clk 0:03:00.7]}
2... d5 {[%clk 0:02:35.4]} 3. Nd2 {[%clk 0:03:01]} 3... Be7 {[%clk 0:02:34.2]}
4. Bd3 {[%clk 0:02:56.2]} 4... c5 {[%clk 0:02:34]} 5. dxc5 {[%clk 0:02:55.9]}
5... Nf6 {[%clk 0:02:34.2]} 6. Ngf3 {[%clk 0:02:50.9]} 6... dxe4 {[%clk
0:02:32.7]} 7. Nxe4 {[%clk 0:02:51.8]} 7... Nxe4 {[%clk 0:02:33]} 8. Bxe4 {[%clk
0:02:52.7]} 8... Qxd1+ {[%clk 0:02:32.6]} 9. Kxd1 {[%clk 0:02:53.6]} 9... Bxc5
{[%clk 0:02:32.8]} 10. Ke2 {[%clk 0:02:53.9]} 10... Nd7 {[%clk 0:02:33.4]} 11.
Be3 {[%clk 0:02:46.1]} 11... Bxe3 {[%clk 0:02:31.1]} 12. Kxe3 {[%clk 0:02:46.5]}
12... Nf6 {[%clk 0:02:29.5]} 13. Rad1 {[%clk 0:02:41.8]} 13... Nxe4 {[%clk
0:02:29.2]} 14. Kxe4 {[%clk 0:02:42.7]} 14... b6 {[%clk 0:02:29.4]} 15. Rd2
{[%clk 0:02:38.4]} 15... Bb7+ {[%clk 0:02:29.2]} 16. Ke3 {[%clk 0:02:38.9]}
16... Rd8 {[%clk 0:01:58.2]} 17. Rhd1 {[%clk 0:02:36.9]} 17... Rxd2 {[%clk
0:01:55.2]} 18. Rxd2 {[%clk 0:02:37.8]} 18... Bxf3 {[%clk 0:01:51.4]} 19. Kxf3
{[%clk 0:02:37.5]} 19... Ke7 {[%clk 0:01:52.3]} 20. c4 {[%clk 0:02:34.6]} 20...
Rc8 {[%clk 0:01:51.4]} 21. b3 {[%clk 0:02:32.9]} 21... g5 {[%clk 0:01:42.1]} 22.
Kg4 {[%clk 0:02:27.7]} 22... Rc5 {[%clk 0:01:37.4]} 23. Kh5 {[%clk 0:02:25]}
23... a5 {[%clk 0:01:24.6]} 24. g4 {[%clk 0:02:21.8]} 24... a4 {[%clk
0:01:19.4]} 25. Kh6 {[%clk 0:02:11.6]} 25... axb3 {[%clk 0:01:13.9]} 26. axb3
{[%clk 0:02:12.5]} 26... b5 {[%clk 0:01:14.5]} 27. Rd4 {[%clk 0:01:40.3]} 27...
bxc4 {[%clk 0:01:12.7]} 28. Rxc4 {[%clk 0:01:39.8]} 28... Rd5 {[%clk 0:00:53.6]}
29. Rc7+ {[%clk 0:01:29.6]} 29... Kf6 {[%clk 0:00:47.8]} 30. Rc3 {[%clk
0:01:29.6]} 30... Rb5 {[%clk 0:00:26.4]} 31. Kxh7 {[%clk 0:01:24.3]} 31... Ke5
{[%clk 0:00:26.6]} 32. Rf3 {[%clk 0:01:19.8]} 32... f5 {[%clk 0:00:24.1]} 33.
gxf5 {[%clk 0:01:15.1]} 33... Ke4 {[%clk 0:00:19.9]} 34. f6 {[%clk 0:00:31.2]}
34... Kxf3 {[%clk 0:00:19.8]} 35. f7 {[%clk 0:00:31.5]} 35... Rf5 {[%clk
0:00:20]} 36. Kg7 {[%clk 0:00:31.7]} 36... Kxf2 {[%clk 0:00:20.7]} 37. b4 {[%clk
0:00:32.3]} 37... e5 {[%clk 0:00:20.5]} 38. b5 {[%clk 0:00:32.9]} 38... e4
{[%clk 0:00:21.1]} 39. b6 {[%clk 0:00:33.5]} 39... e3 {[%clk 0:00:21.8]} 40. b7
{[%clk 0:00:34.2]} 40... e2 {[%clk 0:00:22.5]} 41. b8=Q {[%clk 0:00:34.7]} 41...
e1=Q {[%clk 0:00:23]} 42. Qg3+ {[%clk 0:00:30.5]} 42... Ke2 {[%clk 0:00:18.2]}
43. Qg4+ {[%clk 0:00:27.5]} 43... Rf3 {[%clk 0:00:18.6]} 44. f8=Q {[%clk
0:00:19]} 44... Qc3+ {[%clk 0:00:11.5]} 45. Kh6 {[%clk 0:00:17.2]} 45... Qc6+
{[%clk 0:00:06.9]} 46. Kh5 {[%clk 0:00:17.4]} 46... Kf2 {[%clk 0:00:03.1]} 47.
Qg3+ {[%clk 0:00:17.3]} 47... Ke3 {[%clk 0:00:03.8]} 48. Qa3+ {[%clk 0:00:15.4]}
48... Ke2 {[%clk 0:00:03.7]} 49. Qg2+ {[%clk 0:00:15]} 49... Ke1 {[%clk
0:00:03.1]} 50. Qa1+ {[%clk 0:00:14.4]} 1-0

[Event "Early-Titled-Tuesday-Blitz-September-05-2023"]
[Site "Chess.com"]
[Date "2023.09.05"]
[Round "9"]
[White "MusicCityMaster"]
[Black "Harry_Rakkel"]
[Result "1-0"]
[WhiteElo "2404"]
[BlackElo "2651"]
[TimeControl "180+1"]
[EndTime "9:42:49 PDT"]
[Termination "MusicCityMaster won by checkmate"]

1. e4 {[%clk 0:03:00.9]} 1... c5 {[%clk 0:02:58.3]} 2. Nf3 {[%clk 0:03:00.8]}
2... e6 {[%clk 0:02:58.1]} 3. d3 {[%clk 0:03:00.9]} 3... Nc6 {[%clk 0:02:57.1]}
4. g3 {[%clk 0:03:01]} 4... Nf6 {[%clk 0:02:56.4]} 5. Bg2 {[%clk 0:03:01.3]}
5... d5 {[%clk 0:02:55.8]} 6. Nbd2 {[%clk 0:03:01.7]} 6... Be7 {[%clk
0:02:55.4]} 7. O-O {[%clk 0:02:58.9]} 7... O-O {[%clk 0:02:55]} 8. Re1 {[%clk
0:02:59.2]} 8... b5 {[%clk 0:02:53.1]} 9. e5 {[%clk 0:02:57.8]} 9... Nd7 {[%clk
0:02:52.7]} 10. Nf1 {[%clk 0:02:58.5]} 10... a5 {[%clk 0:02:50.6]} 11. h4 {[%clk
0:02:55.6]} 11... a4 {[%clk 0:02:49.9]} 12. a3 {[%clk 0:02:54.7]} 12... Qc7
{[%clk 0:02:47.7]} 13. Bf4 {[%clk 0:02:54.2]} 13... Bb7 {[%clk 0:02:47.2]} 14.
h5 {[%clk 0:02:52]} 14... h6 {[%clk 0:02:46.7]} 15. Qd2 {[%clk 0:02:49.9]} 15...
Rfc8 {[%clk 0:02:42.3]} 16. N1h2 {[%clk 0:02:48.8]} 16... Qd8 {[%clk 0:02:40.1]}
17. Ng4 {[%clk 0:02:48.3]} 17... b4 {[%clk 0:02:38.3]} 18. Bxh6 {[%clk
0:02:13.7]} 18... gxh6 {[%clk 0:02:35]} 19. Nxh6+ {[%clk 0:02:14.1]} 19... Kg7
{[%clk 0:02:15.3]} 20. Qf4 {[%clk 0:02:13.4]} 20... Qf8 {[%clk 0:02:14.5]} 21.
Bh3 {[%clk 0:01:59.6]} 21... Nd4 {[%clk 0:02:03.6]} 22. Nxd4 {[%clk 0:01:33.1]}
22... cxd4 {[%clk 0:02:03]} 23. Re2 {[%clk 0:01:30.1]} 23... b3 {[%clk 0:01:57]}
24. cxb3 {[%clk 0:01:26.1]} 24... axb3 {[%clk 0:01:57.9]} 25. Ng4 {[%clk
0:01:21.7]} 25... Rc2 {[%clk 0:01:53.4]} 26. Rae1 {[%clk 0:01:21.2]} 26... Rac8
{[%clk 0:01:44.8]} 27. Qxd4 {[%clk 0:01:06.9]} 27... Rxe2 {[%clk 0:01:37.2]} 28.
Rxe2 {[%clk 0:01:07.1]} 28... Rc2 {[%clk 0:01:37.1]} 29. Bf1 {[%clk 0:00:54.6]}
29... Bg5 {[%clk 0:01:28.6]} 30. f4 {[%clk 0:00:52.6]} 30... Be7 {[%clk
0:01:28.2]} 31. Kg2 {[%clk 0:00:43.7]} 31... Qc8 {[%clk 0:01:21.8]} 32. f5
{[%clk 0:00:36.5]} 32... Rxe2+ {[%clk 0:01:18.1]} 33. Bxe2 {[%clk 0:00:36.3]}
33... Qc2 {[%clk 0:01:17.8]} 34. f6+ {[%clk 0:00:36.3]} 34... Kf8 {[%clk
0:00:55.6]} 35. fxe7+ {[%clk 0:00:33.2]} 35... Kxe7 {[%clk 0:00:56.5]} 36. Qb4+
{[%clk 0:00:27.4]} 36... Kd8 {[%clk 0:00:53.9]} 37. Kf2 {[%clk 0:00:23]} 37...
Bc6 {[%clk 0:00:43.1]} 38. h6 {[%clk 0:00:22.6]} 38... Qc1 {[%clk 0:00:31.3]}
39. h7 {[%clk 0:00:20.1]} 39... Qh1 {[%clk 0:00:31.3]} 40. Nf6 {[%clk
0:00:18.1]} 40... Qh2+ {[%clk 0:00:28.4]} 41. Ke1 {[%clk 0:00:17.2]} 41... Nxf6
{[%clk 0:00:25.5]} 42. Qf8+ {[%clk 0:00:14.4]} 42... Ne8 {[%clk 0:00:24.5]} 43.
h8=Q {[%clk 0:00:14.9]} 43... Qg1+ {[%clk 0:00:20.5]} 44. Kd2 {[%clk 0:00:13.9]}
44... Bd7 {[%clk 0:00:19.4]} 45. Qc5 {[%clk 0:00:13.5]} 45... Qxg3 {[%clk
0:00:18.6]} 46. Qb6+ {[%clk 0:00:12.4]} 46... Ke7 {[%clk 0:00:18.3]} 47. Qb4+
{[%clk 0:00:11.8]} 47... Kd8 {[%clk 0:00:18.7]} 48. Qhf8 {[%clk 0:00:12]} 48...
Qg5+ {[%clk 0:00:18.3]} 49. Kc3 {[%clk 0:00:11.2]} 49... Qxe5+ {[%clk
0:00:18.8]} 50. Kxb3 {[%clk 0:00:11.4]} 50... Qxe2 {[%clk 0:00:18.9]} 51. Qfe7+
{[%clk 0:00:10.5]} 51... Kc7 {[%clk 0:00:18.7]} 52. Qbc5+ {[%clk 0:00:10.5]}
52... Kb8 {[%clk 0:00:17]} 53. Qd8+ {[%clk 0:00:10.6]} 53... Kb7 {[%clk
0:00:16.4]} 54. Qdb6+ {[%clk 0:00:10.5]} 54... Ka8 {[%clk 0:00:16.1]} 55. Qa7#
{[%clk 0:00:10.8]} 1-0

[Event "Early-Titled-Tuesday-Blitz-September-05-2023"]
[Site "Chess.com"]
[Date "2023.09.05"]
[Round "9"]
[White "gm_rashid"]
[Black "NowInChess"]
[Result "1-0"]
[WhiteElo "2399"]
[BlackElo "2273"]
[TimeControl "180+1"]
[EndTime "9:42:49 PDT"]
[Termination "gm_rashid won by resignation"]

1. e4 {[%clk 0:02:52.3]} 1... e6 {[%clk 0:02:59.9]} 2. d4 {[%clk 0:02:51.9]}
2... d5 {[%clk 0:03:00.5]} 3. Nc3 {[%clk 0:02:52.5]} 3... Nc6 {[%clk 0:03:00.4]}
4. Nf3 {[%clk 0:02:50.9]} 4... Nf6 {[%clk 0:03:00.1]} 5. exd5 {[%clk 0:02:47.2]}
5... exd5 {[%clk 0:02:58.7]} 6. Bb5 {[%clk 0:02:47.4]} 6... Bd6 {[%clk
0:02:54.4]} 7. O-O {[%clk 0:02:46.8]} 7... O-O {[%clk 0:02:54.4]} 8. Bg5 {[%clk
0:02:44.2]} 8... Be6 {[%clk 0:02:42.6]} 9. Re1 {[%clk 0:02:41.3]} 9... h6 {[%clk
0:02:38.9]} 10. Bh4 {[%clk 0:02:41.2]} 10... Ne7 {[%clk 0:02:37]} 11. Bxf6
{[%clk 0:02:39.3]} 11... gxf6 {[%clk 0:02:37.9]} 12. Qd2 {[%clk 0:02:39.5]}
12... Kh7 {[%clk 0:02:24.6]} 13. Bd3+ {[%clk 0:02:38.3]} 13... Ng6 {[%clk
0:02:20.4]} 14. h4 {[%clk 0:02:29.7]} 14... Bg4 {[%clk 0:02:13]} 15. Nxd5 {[%clk
0:02:24.3]} 15... Bxf3 {[%clk 0:01:56.2]} 16. gxf3 {[%clk 0:02:24.2]} 16... Bh2+
{[%clk 0:01:56.1]} 17. Kxh2 {[%clk 0:02:22.1]} 17... Qxd5 {[%clk 0:01:57]} 18.
Qf4 {[%clk 0:01:50.9]} 18... Kg7 {[%clk 0:01:32.4]} 19. Rg1 {[%clk 0:01:49.4]}
19... Rae8 {[%clk 0:01:10.1]} 20. c4 {[%clk 0:01:33.5]} 20... Qh5 {[%clk
0:01:08.2]} 21. Qg4 {[%clk 0:01:20.2]} 21... Qxg4 {[%clk 0:01:03.6]} 22. Rxg4
{[%clk 0:01:19.8]} 22... h5 {[%clk 0:00:58.2]} 23. Rg3 {[%clk 0:01:00.2]} 23...
Kh6 {[%clk 0:00:57]} 24. Rag1 {[%clk 0:00:53.7]} 24... Rg8 {[%clk 0:00:35.8]}
25. f4 {[%clk 0:00:43.6]} 25... Ne7 {[%clk 0:00:18.2]} 26. Rxg8 {[%clk
0:00:34.1]} 26... Rxg8 {[%clk 0:00:19.1]} 27. Rxg8 {[%clk 0:00:30.4]} 27... Nxg8
{[%clk 0:00:20]} 28. Kg3 {[%clk 0:00:30.7]} 28... Ne7 {[%clk 0:00:18.8]} 29. Be4
{[%clk 0:00:22.7]} 29... c6 {[%clk 0:00:14.7]} 30. f5 {[%clk 0:00:22.6]} 30...
Nc8 {[%clk 0:00:12]} 31. Kf4 {[%clk 0:00:21.7]} 31... Nd6 {[%clk 0:00:11.7]} 32.
Bd3 {[%clk 0:00:22.2]} 32... b6 {[%clk 0:00:10.5]} 33. b4 {[%clk 0:00:20.6]}
33... Kg7 {[%clk 0:00:09.7]} 34. c5 {[%clk 0:00:20.4]} 34... Ne8 {[%clk
0:00:03.6]} 35. Be4 {[%clk 0:00:19.2]} 35... Nc7 {[%clk 0:00:01.8]} 36. Bxc6
{[%clk 0:00:18.7]} 36... Na6 {[%clk 0:00:01.8]} 37. a3 {[%clk 0:00:17.1]} 37...
Nb8 {[%clk 0:00:01.7]} 38. Be4 {[%clk 0:00:16.3]} 38... bxc5 {[%clk 0:00:01.9]}
39. bxc5 {[%clk 0:00:15.7]} 39... Nd7 {[%clk 0:00:02.8]} 40. c6 {[%clk
0:00:15.2]} 40... Nb6 {[%clk 0:00:03.3]} 41. d5 {[%clk 0:00:15.3]} 41... Nc8
{[%clk 0:00:03.1]} 42. Bd3 {[%clk 0:00:10.7]} 42... Kf8 {[%clk 0:00:03.8]} 43.
Ba6 {[%clk 0:00:10.3]} 43... Nd6 {[%clk 0:00:04.4]} 44. c7 {[%clk 0:00:09.9]}
44... Ke7 {[%clk 0:00:05]} 45. c8=Q {[%clk 0:00:10.4]} 1-0

[Event "Early-Titled-Tuesday-Blitz-September-05-2023"]
[Site "Chess.com"]
[Date "2023.09.05"]
[Round "9"]
[White "Roman_Ovetchkin"]
[Black "Fandorine"]
[Result "0-1"]
[WhiteElo "2644"]
[BlackElo "2906"]
[TimeControl "180+1"]
[EndTime "9:42:50 PDT"]
[Termination "Fandorine won on time"]

1. d4 {[%clk 0:03:00.9]} 1... Nf6 {[%clk 0:02:59.6]} 2. c4 {[%clk 0:03:00.9]}
2... g6 {[%clk 0:03:00.2]} 3. Nc3 {[%clk 0:02:59.3]} 3... Bg7 {[%clk 0:03:00.9]}
4. e4 {[%clk 0:02:57.9]} 4... d6 {[%clk 0:03:01.4]} 5. Be2 {[%clk 0:02:57.2]}
5... O-O {[%clk 0:03:01.6]} 6. Nf3 {[%clk 0:02:56.3]} 6... e5 {[%clk 0:03:01.2]}
7. d5 {[%clk 0:02:56.6]} 7... a5 {[%clk 0:02:58.8]} 8. Bg5 {[%clk 0:02:56.3]}
8... h6 {[%clk 0:02:57]} 9. Be3 {[%clk 0:02:56.4]} 9... Ng4 {[%clk 0:02:57.2]}
10. Bd2 {[%clk 0:02:56.5]} 10... f5 {[%clk 0:02:58]} 11. exf5 {[%clk 0:02:55.7]}
11... gxf5 {[%clk 0:02:58.9]} 12. h3 {[%clk 0:02:55.9]} 12... Nf6 {[%clk
0:02:57.6]} 13. Qc1 {[%clk 0:02:56]} 13... Kh7 {[%clk 0:02:40.2]} 14. g4 {[%clk
0:02:55]} 14... Ne4 {[%clk 0:02:05.7]} 15. Nxe4 {[%clk 0:02:24]} 15... fxe4
{[%clk 0:02:05.9]} 16. Qc2 {[%clk 0:02:23.8]} 16... Na6 {[%clk 0:01:57.4]} 17.
Qxe4+ {[%clk 0:02:22.8]} 17... Kg8 {[%clk 0:01:58]} 18. Bd3 {[%clk 0:02:18.8]}
18... Bf5 {[%clk 0:01:58.1]} 19. gxf5 {[%clk 0:02:10.9]} 19... Nc5 {[%clk
0:01:58.3]} 20. Qg4 {[%clk 0:01:30.8]} 20... Nxd3+ {[%clk 0:01:36]} 21. Ke2
{[%clk 0:01:30.7]} 21... Nf4+ {[%clk 0:01:30.5]} 22. Bxf4 {[%clk 0:01:27.7]}
22... exf4 {[%clk 0:01:31.4]} 23. Nd4 {[%clk 0:01:15.5]} 23... Qf6 {[%clk
0:01:21.2]} 24. Rad1 {[%clk 0:01:14.5]} 24... Rae8+ {[%clk 0:00:52]} 25. Kf3
{[%clk 0:01:06.5]} 25... Kh8 {[%clk 0:00:48.7]} 26. Rhg1 {[%clk 0:00:59.3]}
26... Rf7 {[%clk 0:00:30.7]} 27. Rd2 {[%clk 0:00:50.1]} 27... Re5 {[%clk
0:00:22.9]} 28. Qh5 {[%clk 0:00:43.9]} 28... Qe7 {[%clk 0:00:16.8]} 29. Re2
{[%clk 0:00:12.2]} 29... c5 {[%clk 0:00:02.8]} 30. Ne6 {[%clk 0:00:10]} 30...
Rexf5 {[%clk 0:00:02.2]} 31. Qg4 {[%clk 0:00:10.2]} 31... Re5 {[%clk 0:00:01.5]}
32. Rxe5 {[%clk 0:00:09.3]} 32... dxe5 {[%clk 0:00:02]} 33. Ke4 {[%clk
0:00:09.7]} 33... Qf6 {[%clk 0:00:02.1]} 34. Qg6 {[%clk 0:00:09.2]} 34... Qxg6+
{[%clk 0:00:02]} 35. Rxg6 {[%clk 0:00:08.5]} 35... Bf6 {[%clk 0:00:02.8]} 36.
Rxh6+ {[%clk 0:00:07.7]} 36... Kg8 {[%clk 0:00:02.9]} 37. Rg6+ {[%clk 0:00:08]}
37... Kh7 {[%clk 0:00:03.7]} 38. Rg4 {[%clk 0:00:08.3]} 38... b6 {[%clk
0:00:02.2]} 39. b3 {[%clk 0:00:05.3]} 39... Kh6 {[%clk 0:00:02.6]} 40. a4 {[%clk
0:00:04.9]} 40... Kh7 {[%clk 0:00:02.9]} 41. f3 {[%clk 0:00:05]} 41... Kh6
{[%clk 0:00:03]} 0-1